bitfinex/quotes_ETHUSD_20260121
["timestamp","ask_amount","ask_price","bid_price","bid_amount"]
[1769032168299,4.41163443,3036.4,3035.9,0.001]
[1769032168685,0.09206892,3036.3,3035.9,0.001]
[1769032168929,0.45037034,3036.2,3035.9,0.001]
[1769032169111,1.11824048,3036.4,3035.9,0.001]
[1769032170223,1.2103094,3036.4,3035.9,0.001]
[1769032170428,1.11824048,3036.3,3035.3,0.001]
[1769032170592,1.11824048,3036.3,3035.4,4.40289488]
[1769032170922,1.11824048,3036.3,3035.5,1.10844301]
[1769032171417,0.09206892,3036.4,3035.5,1.10844301]
[1769032171618,0.50420467,3036.3,3035.5,4.40279018]
[1769032171819,1.7487767,3036.5,3035.6,1.07017176]
[1769032172192,1.20996495,3036.5,3035.6,1.07017176]
[1769032177821,0.09206892,3036.5,3035.6,1.07017176]
[1769032180330,0.002,3036.2,3035.6,1.07017176]
[1769032188334,0.002,3036.2,3035.3,1.07117176]
[1769032188733,0.09206892,3036.1,3035.3,1.07117176]
[1769032188938,1.20996495,3036.1,3035.3,0.001]
[1769032189736,1.20996495,3035.8,3035.3,0.001]
[1769032190916,1.11789603,3035.6,3035.3,0.001]
[1769032191122,0.4503904,3035.7,3035.3,0.001]
[1769032191652,1.56828643,3035.7,3035.3,0.001]
[1769032193027,1.11789603,3035.7,3035.3,0.001]
[1769032193851,0.09206892,3035.8,3035.3,0.001]
[1769032195059,4.50401827,3035.8,3035.3,0.001]
[1769032195372,1.20996495,3035.8,3035.3,0.001]
[1769032195531,1.11789603,3036.0,3035.3,0.001]
[1769032195730,0.86815339,3035.9,3035.3,0.001]
[1769032196040,0.96022231,3035.9,3035.3,0.001]
[1769032198724,0.86815339,3035.9,3035.3,1.07117176]
[1769032198958,6.866,3036.2,3035.3,1.07117176]
[1769032200453,7.95284372,3036.2,3035.3,1.07117176]
[1769032200762,0.9947748,3036.1,3035.3,1.07117176]
[1769032200962,0.79528437,3036.0,3035.3,1.07117176]
[1769032201658,0.79528437,3036.0,3035.3,4.36572231]
[1769032202032,0.79528437,3036.0,3035.3,1.07117176]
[1769032204766,0.002,3035.7,3035.3,1.07117176]
[1769032205970,0.002,3035.7,3035.3,4.36572831]
[1769032206164,0.002,3035.7,3035.4,1.03651437]
[1769032206338,0.002,3036.0,3035.5,1.03651437]
[1769032208987,0.002,3036.2,3035.6,1.03651437]
[1769032210673,0.002,3036.5,3035.7,1.03651437]
[1769032210891,0.002,3036.5,3035.9,1.03651437]
[1769032211182,0.002,3036.5,3036.1,1.03651437]
[1769032213086,0.002,3036.5,3036.1,4.33019513]
[1769032213444,6.32,3036.8,3036.5,1.03651437]
[1769032213686,0.002,3037.3,3036.5,1.03651437]
[1769032214778,0.002,3037.7,3037.2,1.03651437]
[1769032215366,0.002,3037.7,3037.3,1.03651437]
[1769032216886,0.002,3037.7,3037.4,1.03651437]
[1769032217680,0.002,3037.7,3037.2,1.79868874]
[1769032217886,0.002,3037.3,3037.2,1.03651437]
[1769032218458,0.002,3037.7,3037.2,4.32902062]
[1769032219385,0.002,3037.7,3037.2,3.29250625]
[1769032219608,0.002,3037.7,3037.3,1.03651437]
[1769032225294,0.002,3037.7,3037.2,3.29250494]
[1769032225495,0.002,3037.7,3037.2,4.0546782]
[1769032229499,0.002,3038.3,3037.4,4.18322319]
[1769032229707,0.002,3038.3,3037.8,1.03651437]
[1769032232413,0.09206892,3038.2,3037.4,4.35833187]
[1769032232703,0.09206892,3038.0,3037.4,5.12340249]
[1769032234674,0.09206892,3038.2,3037.4,5.12340249]
[1769032237403,1.14981355,3038.2,3037.4,5.12340249]
[1769032237600,1.14981355,3038.2,3036.7,1.06611189]
[1769032237601,1.05774463,3037.5,3036.7,1.06611189]
[1769032237807,0.9760822,3037.5,3036.7,1.06611189]
[1769032238086,0.9760822,3037.5,3036.5,4.35934413]
[1769032238292,0.9760822,3037.5,3036.6,1.39543511]
[1769032238491,1.14981355,3037.1,3036.2,3.29357215]
[1769032238716,1.14981355,3037.1,3036.2,1.06611189]
[1769032239420,0.09206892,3036.9,3036.0,4.35984455]
[1769032240222,0.09206892,3036.9,3036.2,3.29357091]
[1769032240523,0.09206892,3036.9,3036.2,5.12502905]
[1769032240828,1.05774463,3037.4,3036.3,1.06611189]
[1769032241920,0.09206892,3037.3,3036.4,1.06611189]
[1769032244055,0.09206892,3037.6,3036.5,1.06611189]
[1769032244201,1.14981355,3037.2,3036.2,1.06711189]
[1769032244400,0.09206892,3037.0,3036.2,1.06711189]
[1769032246218,1.14981355,3037.0,3036.2,0.001]
[1769032248216,0.09206892,3037.0,3036.2,1.06711189]
[1769032248441,0.09206892,3037.0,3036.3,0.76545008]
[1769032249115,0.09206892,3037.0,3036.2,1.06711189]
[1769032251013,1.05774463,3037.7,3036.3,1.06611189]
[1769032251246,0.09206892,3037.6,3036.3,1.06611189]
[1769032253050,0.09206892,3037.6,3036.5,1.06611189]
[1769032253250,6.41206892,3037.8,3036.5,1.06611189]
[1769032253426,0.09206892,3037.6,3036.5,1.06611189]
[1769032253625,1.14981355,3037.6,3036.5,1.06611189]
[1769032253834,1.14981355,3037.4,3036.5,1.06611189]
[1769032254019,1.14981355,3037.4,3036.6,0.43594856]
[1769032254246,1.14981355,3037.4,3036.5,1.06611189]
[1769032254632,1.14981355,3037.4,3036.6,0.001]
[1769032259815,0.09206892,3037.2,3036.6,0.001]
[1769032260015,1.07296623,3037.2,3036.6,0.001]
[1769032260229,1.07296623,3037.0,3036.2,0.001]
[1769032261049,1.07296623,3037.0,3036.2,1.00085368]
[1769032263538,4.71685172,3037.2,3036.2,1.00085368]
[1769032263736,0.09206892,3037.0,3036.2,1.00085368]
[1769032264849,0.53780662,3037.2,3036.3,0.99985368]
[1769032265040,0.09206892,3037.7,3036.5,0.99985368]
[1769032265228,0.09206892,3037.7,3036.6,0.99985368]
[1769032265229,3.38405326,3037.7,3036.6,0.99985368]
[1769032267759,3.99697308,3037.7,3036.6,0.99985368]
[1769032267960,1.36088487,3037.6,3036.7,0.99985368]
[1769032268353,0.09206892,3037.5,3036.7,0.99985368]
[1769032269336,0.09206892,3037.3,3036.5,0.001]
[1769032269847,0.09206892,3037.3,3036.5,1.00085368]
[1769032272740,0.7184958,3037.3,3036.5,0.001]
[1769032273056,0.09206892,3037.1,3036.5,0.001]
[1769032273249,0.5910299,3037.1,3036.5,0.001]
[1769032277595,0.5910299,3037.1,3036.8,0.001]
[1769032282858,0.09206892,3036.6,3035.8,0.99985368]
[1769032285888,4.17300229,3036.6,3035.8,0.99985368]
[1769032287095,0.09206892,3036.3,3035.4,0.99985368]
[1769032287263,0.09206892,3036.3,3035.3,1.00085368]
[1769032287264,0.09206892,3036.1,3035.3,1.00085368]
[1769032288373,0.09206892,3035.9,3035.3,0.001]
[1769032288764,0.49349406,3035.8,3035.3,0.001]
[1769032289594,3.78755449,3035.8,3035.3,0.001]
[1769032292266,0.09206892,3035.7,3035.3,0.001]
[1769032292467,0.09206892,3035.5,3034.2,6.5915233]
[1769032292685,0.52838721,3035.5,3034.4,1.017488]
[1769032294393,0.52838721,3035.5,3034.5,1.017488]
[1769032296269,7.11712733,3035.5,3034.5,1.017488]
[1769032296503,0.09206892,3035.3,3034.5,1.017488]
[1769032296692,0.09206892,3035.0,3033.9,1.017488]
[1769032296894,0.77475059,3035.0,3033.9,1.017488]
[1769032297271,0.77672592,3034.8,3033.9,1.017488]
[1769032297772,0.09206892,3034.6,3033.9,1.017488]
[1769032297977,0.77672592,3034.6,3033.5,1.017488]
[1769032298198,1.28150991,3034.6,3033.7,1.017488]
[1769032298395,0.59685291,3034.6,3033.7,1.017488]
[1769032299792,0.09206892,3035.0,3033.7,1.017488]
[1769032299793,7.00854779,3035.2,3033.8,1.017488]
[1769032300114,0.09206892,3035.1,3033.8,1.017488]
[1769032300277,0.7825238,3034.9,3033.8,1.017488]
[1769032300476,3.29511005,3034.8,3033.8,1.017488]
[1769032300675,0.7825238,3034.9,3033.8,4.31367885]
[1769032300982,0.7825238,3034.9,3033.9,1.017488]
[1769032300983,0.4077496,3034.8,3033.9,1.017488]
[1769032301288,0.09206892,3034.9,3033.9,1.017488]
[1769032301989,0.09206892,3034.9,3034.1,1.018488]
[1769032302309,0.09206892,3034.7,3034.1,0.001]
[1769032302604,0.09206892,3035.1,3034.2,1.017488]
[1769032302773,0.09206892,3034.9,3034.2,1.017488]
[1769032302976,0.76945249,3034.9,3034.1,0.001]
[1769032303275,0.09206892,3034.7,3034.1,0.001]
[1769032304215,0.09206892,3034.5,3034.1,0.001]
[1769032305096,0.09206892,3034.5,3033.8,1.017488]
[1769032305290,0.33874191,3034.4,3033.8,1.017488]
[1769032305615,0.09206892,3034.5,3033.8,1.017488]
[1769032305812,3.38751253,3034.5,3033.8,1.017488]
[1769032306115,0.09206892,3034.5,3033.8,1.017488]
[1769032309185,0.67738357,3034.9,3033.9,1.017488]
[1769032309384,3.38693348,3035.1,3034.1,1.017488]
[1769032313536,3.38693348,3035.1,3034.4,0.001]
[1769032314137,0.09206892,3035.1,3034.4,1.018488]
[1769032314730,4.0155238,3035.3,3034.4,1.018488]
[1769032315035,0.55732819,3035.2,3034.4,1.018488]
[1769032315235,0.09206892,3035.0,3034.4,0.001]
[1769032315441,0.55732819,3035.2,3034.5,1.017488]
[1769032315646,3.38675007,3035.2,3034.5,1.017488]
[1769032316332,0.79019581,3035.0,3034.4,0.001]
[1769032316557,0.09206892,3035.0,3034.4,0.001]
[1769032321244,3.38699154,3035.0,3034.4,0.001]
[1769032321451,0.09206892,3035.0,3034.4,0.001]
[1769032321758,0.33869052,3034.9,3034.4,0.001]
[1769032323955,0.09206892,3035.0,3034.4,0.001]
[1769032324328,0.09206892,3035.0,3034.4,1.09362894]
[1769032326224,0.002,3034.8,3034.4,1.09362894]
[1769032326632,0.002,3034.8,3033.8,3.29615312]
[1769032326633,0.09206892,3034.7,3033.8,1.09262894]
[1769032326964,0.09206892,3034.7,3033.9,1.09262894]
[1769032327762,3.38729054,3034.7,3033.9,1.09262894]
[1769032327960,0.33892905,3034.6,3033.9,1.09262894]
[1769032330765,3.63431097,3034.6,3033.9,1.09262894]
[1769032331868,0.33892905,3034.6,3033.9,1.09262894]
[1769032333162,0.09206892,3034.5,3033.7,1.09262894]
[1769032333368,1.33178468,3034.5,3033.7,1.09262894]
[1769032333661,0.37262733,3034.5,3033.7,1.09262894]
[1769032333864,0.002,3034.8,3033.9,1.09262894]
[1769032334065,3.29711105,3034.8,3033.9,1.09262894]
[1769032334561,0.002,3034.8,3033.9,1.09262894]
[1769032335678,3.29712011,3034.8,3033.9,1.09262894]
[1769032335883,0.002,3034.8,3033.9,1.09262894]
[1769032336169,0.09206892,3034.6,3033.9,1.09262894]
[1769032336353,0.09206892,3034.4,3033.4,1.09262894]
[1769032338566,3.38764743,3034.4,3033.4,1.09262894]
[1769032338765,0.09206892,3034.4,3033.7,0.001]
[1769032340181,3.38761386,3034.4,3033.7,0.001]
[1769032340387,0.33876139,3034.3,3033.7,0.001]
[1769032341381,0.32970015,3034.7,3033.8,1.09262894]
[1769032341592,0.002,3034.8,3033.8,1.09262894]
[1769032341797,0.002,3034.8,3034.0,1.09262894]
[1769032342212,0.002,3034.8,3034.1,3.29587027]
[1769032342492,0.002,3034.8,3034.3,1.09262894]
[1769032346975,0.09206892,3034.7,3034.0,1.09262894]
[1769032347179,0.09206892,3034.7,3033.8,1.09262894]
[1769032351299,0.002,3034.5,3033.8,1.09262894]
[1769032352133,0.002,3034.8,3034.0,1.01639291]
[1769032352335,0.64340689,3034.8,3034.0,1.01639291]
[1769032356855,0.002,3034.8,3034.0,1.01639291]
[1769032358523,0.002,3034.8,3034.1,1.01639291]
[1769032364631,0.002,3034.8,3034.3,0.001]
[1769032364831,0.002,3034.5,3034.3,0.001]
[1769032365143,0.002,3034.5,3034.3,1.01739291]
[1769032366456,0.002,3034.5,3034.3,0.001]
[1769032366659,0.002,3034.5,3033.9,1.01639291]
[1769032367789,0.002,3034.5,3033.7,1.01639291]
[1769032368167,0.002,3034.5,3033.8,1.01639291]
[1769032368560,0.002,3034.5,3033.9,1.01639291]
[1769032370548,0.002,3034.8,3034.2,1.01639291]
[1769032372874,0.002,3034.8,3034.2,3.29571972]
[1769032373061,0.002,3034.8,3034.3,1.01639291]
[1769032378193,0.002,3034.8,3034.5,0.001]
[1769032389344,0.002,3035.1,3034.6,1.09237301]
[1769032390352,0.002,3034.8,3034.5,0.001]
[1769032390907,0.002,3034.8,3034.5,1.09337301]
[1769032391104,0.002,3035.1,3034.6,1.09237301]
[1769032391848,3.93101466,3035.9,3034.5,7.91976608]
[1769032391849,0.91205213,3036.0,3034.9,1.09237301]
[1769032392146,3.29575615,3036.1,3034.9,1.09237301]
[1769032392343,0.33878251,3036.0,3035.0,1.09237301]
[1769032393404,0.002,3036.1,3035.0,1.09237301]
[1769032394230,0.002,3036.1,3034.9,1.18673463]
[1769032394231,0.002,3036.1,3035.2,1.09237301]
[1769032396235,0.002,3036.1,3035.4,1.09237301]
[1769032399753,0.8976047,3036.0,3035.2,1.09237301]
[1769032400048,0.8976047,3036.0,3034.9,1.18673463]
[1769032400049,0.8976047,3035.8,3034.9,1.09237301]
[1769032400215,0.8976047,3035.8,3034.7,1.09237301]
[1769032400415,0.8976047,3035.8,3034.7,4.38756556]
[1769032400813,0.8976047,3035.8,3034.8,4.38747914]
[1769032401521,0.8976047,3035.8,3034.9,1.09237301]
[1769032401933,0.8996047,3035.8,3034.9,1.09237301]
[1769032402131,1.32816186,3035.8,3034.9,1.09237301]
[1769032406365,0.52262608,3035.8,3034.9,1.09237301]
[1769032406569,0.43055716,3035.8,3035.0,1.09237301]
[1769032406738,0.002,3035.8,3035.0,1.09237301]
[1769032408160,0.002,3035.8,3035.0,3.29487024]
[1769032408365,0.002,3035.8,3035.1,1.09237301]
[1769032409949,0.002,3035.8,3035.2,1.09237301]
[1769032411660,0.002,3035.8,3035.4,0.98438733]
[1769032411861,0.002,3035.8,3035.6,0.98438733]
[1769032415166,0.002,3036.1,3035.7,0.98438733]
[1769032417615,0.002,3036.1,3035.2,0.98438733]
[1769032417779,0.78012955,3036.1,3035.2,0.98438733]
[1769032418318,0.002,3036.1,3035.3,0.98438733]
[1769032418456,0.002,3036.1,3034.8,4.18453598]
[1769032418457,0.002,3036.1,3035.8,0.98438733]
[1769032418659,0.002,3036.1,3035.8,1.4122465]
[1769032418983,0.002,3036.1,3035.8,0.98438733]
[1769032421506,0.002,3036.1,3035.4,0.98438733]
[1769032422211,0.002,3036.1,3035.2,0.98438733]
[1769032424884,0.002,3035.8,3035.2,0.98438733]
[1769032426009,0.002,3035.8,3035.3,0.98438733]
[1769032426204,0.002,3035.8,3035.4,0.42790241]
[1769032426682,0.002,3035.8,3035.4,1.41228974]
[1769032428484,0.002,3035.8,3035.5,0.98438733]
[1769032428670,0.002,3036.1,3035.6,0.98438733]
[1769032432999,0.002,3036.4,3035.8,0.98438733]
[1769032433208,0.002,3036.4,3035.8,0.42785638]
[1769032433412,0.002,3036.4,3035.7,0.98438733]
[1769032436327,0.002,3036.1,3035.7,0.98438733]
[1769032442043,0.002,3036.1,3035.5,0.98683666]
[1769032442216,0.002,3036.1,3035.3,0.98683666]
[1769032442738,0.002,3036.1,3035.3,1.41498145]
[1769032443329,0.002,3036.1,3035.4,0.98683666]
[1769032443719,0.002,3036.1,3035.5,0.98683666]
[1769032447347,0.002,3036.1,3035.4,0.98683666]
[1769032447529,0.002,3036.1,3035.4,4.28124929]
[1769032447726,0.002,3036.4,3035.7,0.98683666]
[1769032447942,0.83917333,3036.3,3035.1,0.98683666]
[1769032448521,0.83917333,3036.3,3035.2,0.98683666]
[1769032448718,0.002,3035.8,3035.2,0.98683666]
[1769032449015,0.002,3035.8,3034.7,0.98683666]
[1769032449016,0.74815359,3035.8,3034.7,0.98683666]
[1769032449253,0.74815359,3035.8,3034.8,0.98683666]
[1769032451548,0.74815359,3035.8,3034.9,0.98683666]
[1769032452924,0.74815359,3035.8,3034.9,4.28180509]
[1769032453132,0.74815359,3035.8,3035.1,0.98683666]
[1769032453133,0.002,3035.8,3035.1,0.98683666]
[1769032453339,0.002,3035.8,3035.3,0.98683666]
[1769032453764,0.002,3035.8,3035.0,0.98683666]
[1769032453967,0.74356085,3035.8,3034.8,0.98683666]
[1769032454451,0.74067371,3035.7,3034.6,0.98683666]
[1769032454630,1.1535554,3035.7,3034.6,0.98683666]
[1769032455342,1.1535554,3035.7,3034.7,0.98683666]
[1769032457657,0.41288169,3035.7,3034.8,0.98683666]
[1769032458060,1.15095465,3035.7,3034.8,0.98683666]
[1769032458555,0.73722588,3035.6,3034.8,0.98683666]
[1769032458757,0.44443024,3035.5,3034.8,0.98683666]
[1769032459449,0.41288169,3035.7,3034.8,0.98683666]
[1769032460857,0.41288169,3035.7,3035.1,0.001]
[1769032461562,4.1245349,3035.8,3035.1,0.001]
[1769032461563,0.002,3035.8,3035.1,0.98783666]
[1769032463054,0.002,3035.8,3035.3,0.98683666]
[1769032465256,0.002,3035.8,3035.1,0.001]
[1769032465570,0.73356258,3035.8,3035.1,0.001]
[1769032467777,4.02765754,3035.8,3035.1,0.001]
[1769032467985,1.1327926,3035.7,3035.1,0.001]
[1769032470688,4.42695969,3035.7,3035.1,0.001]
[1769032471352,3.69693284,3035.7,3035.1,0.001]
[1769032472182,0.40276575,3035.7,3035.1,0.001]
[1769032472974,0.40276575,3035.7,3035.4,0.001]
[1769032473165,0.36988891,3035.6,3035.4,0.001]
[1769032475401,3.66417658,3035.6,3035.4,0.001]
[1769032475598,0.36988891,3035.6,3035.4,0.001]
[1769032476006,0.36988891,3035.6,3034.9,1.00377268]
[1769032477320,0.72318337,3035.5,3034.6,1.0047698]
[1769032477468,0.72318337,3035.3,3034.4,1.0047698]
[1769032477780,0.72318337,3035.3,3033.8,3.29617067]
[1769032477781,0.81525229,3035.3,3034.2,1.0047698]
[1769032479311,3.2946758,3035.2,3034.2,1.0047698]
[1769032480216,0.09206892,3034.6,3033.5,1.0047698]
[1769032480578,0.81328129,3034.6,3033.5,1.0047698]
[1769032482108,4.01600623,3034.5,3033.5,1.0047698]
[1769032482608,0.71993581,3034.4,3033.5,1.0047698]
[1769032484878,3.29543582,3034.5,3033.5,1.0047698]
[1769032485205,0.33875047,3034.4,3033.8,0.001]
[1769032486913,0.33875047,3034.4,3033.8,1.0057698]
[1769032497426,4.10609028,3034.6,3033.8,1.0057698]
[1769032497630,4.10609028,3034.6,3034.1,0.001]
[1769032501147,7.40142323,3034.6,3034.1,0.001]
[1769032503742,0.09206892,3034.4,3033.6,0.94694583]
[1769032506282,0.002,3035.3,3034.2,0.94894296]
[1769032506425,0.002,3035.3,3034.4,0.94894296]
[1769032508543,0.002,3035.3,3034.5,0.94894296]
[1769032508970,0.09406892,3035.6,3034.4,3.29548227]
[1769032508971,0.002,3035.6,3034.6,0.94894296]
[1769032509844,0.09206892,3035.5,3034.6,0.94894296]
[1769032510044,0.002,3035.0,3034.6,0.94894296]
[1769032510944,0.002,3035.0,3034.4,0.39894296]
[1769032511143,0.002,3035.0,3033.8,0.94894296]
[1769032511144,0.09206892,3034.9,3033.8,0.94894296]
[1769032511345,0.09206892,3034.9,3034.0,0.94894296]
[1769032512265,0.09206892,3034.7,3034.0,0.94894296]
[1769032512471,0.09206892,3034.5,3034.0,0.94894296]
[1769032513160,0.09206892,3034.5,3033.5,3.29646414]
[1769032513360,0.09206892,3034.5,3033.7,0.94894296]
[1769032516782,0.002,3035.0,3033.8,0.94894296]
[1769032516989,0.09206892,3034.9,3033.9,0.94894296]
[1769032517284,0.09206892,3034.9,3033.6,0.65930186]
[1769032517285,1.04782436,3034.7,3033.6,4.90460921]
[1769032517488,1.04782436,3034.7,3033.7,0.94894296]
[1769032518876,0.09206892,3034.7,3033.7,0.94894296]
[1769032519670,3.38730349,3034.7,3033.7,0.94894296]
[1769032519884,4.1603194,3034.7,3033.8,0.94894296]
[1769032522191,0.09206892,3034.5,3033.8,0.94894296]
[1769032522364,0.09206892,3034.5,3033.6,0.94894296]
[1769032522682,1.04782436,3034.5,3034.0,0.001]
[1769032524675,0.94240675,3034.5,3034.0,0.001]
[1769032524872,3.38709708,3034.9,3034.0,0.94994296]
[1769032526295,0.002,3035.0,3034.0,0.94994296]
[1769032526674,0.002,3035.0,3034.2,0.94894296]
[1769032526979,0.002,3035.3,3034.6,0.94894296]
[1769032527496,0.002,3035.6,3034.9,0.94894296]
[1769032528694,0.002,3035.6,3035.1,0.94894296]
[1769032528895,0.002,3035.6,3035.2,0.94894296]
[1769032534678,0.09206892,3035.1,3034.6,1.00165417]
[1769032534877,0.09206892,3035.0,3034.4,1.00165417]
[1769032535798,0.09406892,3035.3,3034.5,1.00165417]
[1769032536301,0.002,3035.3,3034.8,1.00165417]
[1769032536870,0.002,3035.3,3034.6,1.00165417]
[1769032537074,0.09206892,3035.2,3034.3,1.00165417]
[1769032538210,0.09206892,3035.2,3034.1,3.29681699]
[1769032538211,0.09206892,3034.4,3034.1,0.001]
[1769032539406,0.09206892,3033.9,3033.0,1.00165417]
[1769032539576,0.09206892,3033.9,3032.3,4.18682264]
[1769032539577,0.09206892,3033.7,3032.5,1.00165417]
[1769032539915,0.09206892,3033.5,3032.7,1.00165417]
[1769032540880,0.09206892,3033.7,3032.7,1.00165417]
[1769032541719,3.38842621,3033.7,3032.7,1.00165417]
[1769032542783,0.09206892,3033.7,3032.7,1.00165417]
[1769032542984,3.29587027,3034.1,3032.8,1.00165417]
[1769032543179,0.43086284,3034.0,3032.9,1.00165417]
[1769032543980,3.29608754,3033.9,3032.9,1.00165417]
[1769032544595,3.72687789,3034.0,3032.9,1.00165417]
[1769032544795,0.37268779,3033.9,3032.9,1.00165417]
[1769032545129,0.09206892,3033.8,3032.9,1.00165417]
[1769032546424,0.09206892,3034.4,3032.9,1.00165417]
[1769032546732,0.09206892,3034.2,3033.0,1.00165417]
[1769032546932,0.33878143,3034.1,3033.0,1.00165417]
[1769032547124,0.33878143,3034.1,3033.2,0.001]
[1769032547430,0.09206892,3034.0,3033.2,0.001]
[1769032548203,3.29608754,3033.9,3033.2,0.001]
[1769032548410,0.09206892,3033.8,3033.2,0.001]
[1769032548717,0.33881565,3033.7,3033.2,0.001]
[1769032550205,1.03556467,3033.6,3032.5,1.00165417]
[1769032550526,3.29652216,3033.5,3032.5,1.00165417]
[1769032550732,0.09206892,3033.3,3032.5,1.00165417]
[1769032552616,0.09206892,3033.6,3032.6,1.00165417]
[1769032555129,0.09206892,3033.6,3032.3,3.29779685]
[1769032555130,0.09206892,3032.8,3031.7,1.00165417]
[1769032556407,0.09206892,3032.8,3031.9,1.00165417]
[1769032556734,0.53454432,3032.8,3031.9,1.00165417]
[1769032557137,0.4424754,3032.8,3031.9,1.00165417]
[1769032557336,0.09206892,3033.0,3031.9,1.00165417]
[1769032557709,0.09206892,3032.8,3031.9,1.00165417]
[1769032558730,0.09206892,3032.8,3031.6,1.00165417]
[1769032558931,3.3893531,3032.8,3032.0,0.001]
[1769032559132,0.09206892,3032.6,3032.0,0.001]
[1769032559410,0.09206892,3031.9,3030.9,1.00165417]
[1769032559920,0.09206892,3032.4,3031.4,3.29872845]
[1769032560123,0.09206892,3032.5,3031.5,0.9952827]
[1769032560442,0.09206892,3032.0,3031.1,0.9952827]
[1769032560742,0.09206892,3032.6,3031.1,0.9952827]
[1769032560909,4.33858375,3032.8,3031.2,0.9952827]
[1769032561112,0.09206892,3032.6,3031.2,0.9952827]
[1769032562112,0.09206892,3033.0,3031.2,0.9952827]
[1769032562534,0.09206892,3033.0,3031.4,0.95735789]
[1769032562841,0.5427323,3033.0,3031.6,0.95735789]
[1769032563613,0.09206892,3032.8,3031.6,0.95735789]
[1769032564639,0.09206892,3032.8,3031.5,1.08541018]
[1769032564644,0.09206892,3032.8,3031.8,0.95735789]
[1769032565348,0.09206892,3032.6,3031.8,0.95735789]
[1769032565543,0.09206892,3032.6,3031.8,1.71279721]
[1769032566249,1.11765886,3033.0,3031.9,0.95735789]
[1769032566421,0.09206892,3032.8,3031.9,0.95735789]
[1769032566745,0.09206892,3032.8,3031.9,4.25560162]
[1769032567451,0.09206892,3032.8,3031.9,0.95735789]
[1769032567640,0.09206892,3032.8,3031.9,1.78831496]
[1769032568655,0.09206892,3032.8,3031.9,5.08654395]
[1769032568843,0.09206892,3032.8,3032.0,0.95735789]
[1769032569243,0.09206892,3033.0,3032.0,0.95735789]
[1769032569555,0.09206892,3032.9,3032.0,0.95735789]
[1769032569724,0.09206892,3032.7,3032.0,1.79583847]
[1769032569925,0.09206892,3032.7,3032.0,0.95735789]
[1769032570133,0.002,3032.5,3031.7,0.95735789]
[1769032570653,0.002,3032.5,3031.8,0.95735789]
[1769032571035,0.002,3032.5,3031.9,0.95735789]
[1769032571234,0.002,3032.5,3031.9,1.3829289]
[1769032571852,0.002,3032.5,3031.9,0.42557101]
[1769032572151,0.002,3032.5,3031.6,4.25591539]
[1769032573752,0.002,3032.5,3031.7,0.95735789]
[1769032574755,1.02758994,3032.5,3031.5,3.29864155]
[1769032574959,1.02758994,3032.5,3031.4,4.25614971]
[1769032575264,0.43251815,3032.4,3031.4,4.25614971]
[1769032575429,0.09206892,3032.3,3031.4,0.95735789]
[1769032575753,0.43251815,3032.4,3031.5,0.95735789]
[1769032575930,0.002,3032.5,3031.5,0.95735789]
[1769032576742,0.09406892,3032.5,3031.5,0.95735789]
[1769032577658,0.09406892,3032.5,3031.5,4.25598442]
[1769032578359,0.09406892,3032.5,3031.5,0.95735789]
[1769032578552,0.44171865,3032.4,3031.5,0.95735789]
[1769032579962,0.44171865,3032.4,3031.5,4.25603784]
[1769032581062,1.11765886,3032.3,3031.5,3.29867995]
[1769032581259,1.11765886,3032.3,3031.1,0.95735789]
[1769032581260,1.11765886,3032.1,3031.1,0.95735789]
[1769032581461,1.11765886,3031.9,3030.9,4.25664011]
[1769032581663,1.11765886,3031.9,3030.8,0.95735789]
[1769032581664,0.09206892,3031.7,3030.8,0.95735789]
[1769032581833,0.09206892,3031.7,3030.8,1.71301165]
[1769032582038,0.09206892,3031.7,3030.9,0.95735789]
[1769032583264,0.09206892,3031.5,3030.7,3.29955439]
[1769032583464,0.09206892,3031.5,3030.7,4.25691228]
[1769032583668,0.09206892,3031.5,3030.4,0.95735789]
[1769032583868,0.09206892,3031.5,3030.6,0.95735789]
[1769032584653,0.09206892,3031.5,3030.6,4.25699729]
[1769032585074,0.09206892,3031.5,3030.6,0.95735789]
[1769032585372,0.54289208,3031.5,3030.6,0.95735789]
[1769032587767,1.56848202,3031.5,3030.6,0.95735789]
[1769032591486,0.54289208,3031.5,3030.6,0.95735789]
[1769032591696,0.54289208,3031.5,3030.7,1.02690998]
[1769032591987,0.09206892,3031.5,3030.7,1.02690998]
[1769032592551,0.002,3032.5,3031.4,1.02690998]
[1769032592788,0.09206892,3032.4,3031.4,1.02690998]
[1769032593082,0.09206892,3032.1,3031.4,1.02690998]
[1769032593279,0.09206892,3032.1,3031.6,0.02748656]
[1769032593694,0.09206892,3031.9,3031.6,0.02748656]
[1769032595360,0.09206892,3032.4,3031.6,1.05439654]
[1769032595677,0.09206892,3032.2,3031.6,1.05439654]
[1769032596970,0.09206892,3031.8,3031.6,0.02748656]
[1769032597682,1.06804919,3031.8,3031.2,0.001]
[1769032597886,0.09206892,3031.5,3031.2,0.001]
[1769032605182,0.09206892,3031.6,3031.2,0.001]
[1769032606431,0.09206892,3032.2,3031.2,1.02790998]
[1769032606719,0.09206892,3032.0,3031.5,0.001]
[1769032609116,0.09206892,3032.0,3031.5,1.02790998]
[1769032612626,0.43123263,3032.4,3031.5,1.02790998]
[1769032612826,0.09206892,3032.4,3031.6,1.02690998]
[1769032614934,0.09206892,3032.2,3031.6,1.02690998]
[1769032618504,0.09206892,3032.4,3031.6,1.02690998]
[1769032618737,0.09206892,3032.2,3031.6,1.02690998]
[1769032619209,0.002,3031.9,3031.6,1.02690998]
[1769032624418,0.09406892,3032.2,3031.7,1.02075866]
[1769032624419,0.002,3032.2,3031.7,1.02075866]
[1769032624945,0.002,3032.2,3031.5,1.02175866]
[1769032625342,0.002,3032.2,3031.6,1.02075866]
[1769032625845,0.09206892,3032.1,3031.5,0.001]
[1769032627545,0.09406892,3032.2,3031.5,0.001]
[1769032628346,0.09406892,3032.2,3031.5,1.02175866]
[1769032628553,0.09206892,3031.8,3031.5,0.001]
[1769032630226,4.3363232,3031.8,3030.9,1.02075866]
[1769032630622,0.09206892,3031.6,3030.9,1.02075866]
[1769032630824,0.09206892,3031.4,3030.4,4.32059318]
[1769032631040,0.09206892,3031.2,3030.4,1.02075866]
[1769032631240,1.03794226,3031.4,3030.4,4.32059839]
[1769032631521,1.03794226,3031.4,3030.5,1.78281431]
[1769032633455,1.03794226,3031.4,3030.5,1.02075866]
[1769032634454,0.09206892,3031.8,3030.6,1.02075866]